[Event "*** Titled Tuesday Blitz"]
[Site "Chess.com"]
[Date "2021.03.09"]
[Round "6"]
[White "david_alex"]
[Black "suyu28"]
[Result "0-1"]
[WhiteElo "2084"]
[BlackElo "2607"]
[TimeControl "180+1"]
[EndTime "11:10:56 PST"]
[Termination "suyu28 won on time"]

1. e4 {[%clk 0:03:00.9]} 1... e5 {[%clk 0:02:56.9]} 2. Nf3 {[%clk 0:03:01.4]}
2... Nc6 {[%clk 0:02:54.6]} 3. Bc4 {[%clk 0:03:02]} 3... Bc5 {[%clk 0:02:53.8]}
4. c3 {[%clk 0:03:02.1]} 4... Nf6 {[%clk 0:02:52.6]} 5. d3 {[%clk 0:03:02.7]}
5... d6 {[%clk 0:02:40.3]} 6. Nbd2 {[%clk 0:02:58.6]} 6... Bg4 {[%clk
0:02:32.1]} 7. h3 {[%clk 0:02:57.1]} 7... Bh5 {[%clk 0:02:29.1]} 8. O-O {[%clk
0:02:40.5]} 8... Qd7 {[%clk 0:02:25.5]} 9. b4 {[%clk 0:02:38.6]} 9... Bb6 {[%clk
0:02:25.2]} 10. a4 {[%clk 0:02:35.6]} 10... a5 {[%clk 0:02:22.2]} 11. Qb3 {[%clk
0:02:29.2]} 11... O-O {[%clk 0:02:08.5]} 12. Re1 {[%clk 0:02:14.9]} 12... Rfe8
{[%clk 0:01:52.1]} 13. b5 {[%clk 0:02:14]} 13... Ne7 {[%clk 0:01:45.2]} 14. Qd1
{[%clk 0:02:11.6]} 14... Rad8 {[%clk 0:01:28.7]} 15. Nf1 {[%clk 0:02:10.3]}
15... d5 {[%clk 0:01:23.8]} 16. exd5 {[%clk 0:01:52.7]} 16... Nexd5 {[%clk
0:01:23.5]} 17. Bd2 {[%clk 0:01:48.8]} 17... e4 {[%clk 0:01:05.6]} 18. dxe4
{[%clk 0:01:43.1]} 18... Nxe4 {[%clk 0:01:05.9]} 19. Be3 {[%clk 0:00:59.7]}
19... Nexc3 {[%clk 0:01:02.2]} 20. Qd3 {[%clk 0:00:52.1]} 20... Bg6 {[%clk
0:00:53.5]} 21. Qd2 {[%clk 0:00:48]} 21... Ne4 {[%clk 0:00:43.4]} 22. Qa2 {[%clk
0:00:44.1]} 22... Nb4 {[%clk 0:00:38.9]} 23. Qb3 {[%clk 0:00:39.1]} 23... Nd3
{[%clk 0:00:34.8]} 24. Red1 {[%clk 0:00:28.7]} 24... Nexf2 {[%clk 0:00:32]} 25.
Bxb6 {[%clk 0:00:20.3]} 25... cxb6 {[%clk 0:00:32.9]} 26. Rd2 {[%clk 0:00:13.8]}
26... Nxh3+ {[%clk 0:00:21.4]} 27. gxh3 {[%clk 0:00:12.6]} 27... Qxh3 {[%clk
0:00:22.3]} 28. Bxd3 {[%clk 0:00:09.2]} 28... Qxf3 {[%clk 0:00:16.1]} 29. Bc4
{[%clk 0:00:06.5]} 29... Qg4+ {[%clk 0:00:14.6]} 30. Rg2 {[%clk 0:00:04.1]}
30... Qd4+ {[%clk 0:00:09.4]} 31. Kh1 {[%clk 0:00:03.8]} 31... Qxa1 {[%clk
0:00:10]} 32. Rxg6 {[%clk 0:00:03]} 32... hxg6 {[%clk 0:00:07.7]} 33. Bxf7+
{[%clk 0:00:02.5]} 33... Kf8 {[%clk 0:00:04.7]} 34. Bc4 {[%clk 0:00:01.8]} 34...
Qf6 {[%clk 0:00:04.1]} 0-1

[Event "*** Titled Tuesday Blitz"]
[Site "Chess.com"]
[Date "2021.03.09"]
[Round "6"]
[White "LenkaPtacnikova"]
[Black "Treacherous_horse64"]
[Result "0-1"]
[WhiteElo "2127"]
[BlackElo "2523"]
[TimeControl "180+1"]
[EndTime "11:10:57 PST"]
[Termination "Treacherous_horse64 won on time"]

1. c4 {[%clk 0:02:59.4]} 1... g6 {[%clk 0:02:58.9]} 2. g3 {[%clk 0:02:59.9]}
2... Bg7 {[%clk 0:02:59.3]} 3. Bg2 {[%clk 0:03:00.5]} 3... Nf6 {[%clk 0:03:00]}
4. Nc3 {[%clk 0:03:00.5]} 4... O-O {[%clk 0:03:00.3]} 5. d4 {[%clk 0:02:56.2]}
5... d6 {[%clk 0:03:00.5]} 6. Nf3 {[%clk 0:02:53.5]} 6... Nc6 {[%clk 0:03:01]}
7. e4 {[%clk 0:02:51.5]} 7... Bg4 {[%clk 0:02:58.9]} 8. h3 {[%clk 0:02:50.2]}
8... Bxf3 {[%clk 0:02:58.3]} 9. Bxf3 {[%clk 0:02:50.6]} 9... e5 {[%clk
0:02:58.9]} 10. d5 {[%clk 0:02:50.1]} 10... Nd4 {[%clk 0:02:59.3]} 11. Bg2
{[%clk 0:02:50.5]} 11... c5 {[%clk 0:02:59.1]} 12. dxc6 {[%clk 0:02:49.6]} 12...
bxc6 {[%clk 0:02:58.4]} 13. c5 {[%clk 0:02:48.8]} 13... dxc5 {[%clk 0:02:43.4]}
14. O-O {[%clk 0:02:48.1]} 14... Nd7 {[%clk 0:02:42.1]} 15. Be3 {[%clk
0:02:44.3]} 15... Re8 {[%clk 0:02:18.2]} 16. Rc1 {[%clk 0:02:42.4]} 16... Qa5
{[%clk 0:02:13.3]} 17. Na4 {[%clk 0:02:39.6]} 17... Bf8 {[%clk 0:01:54.5]} 18.
Bd2 {[%clk 0:02:24.6]} 18... Qa6 {[%clk 0:01:51.1]} 19. Re1 {[%clk 0:01:58.9]}
19... Nb6 {[%clk 0:01:44.7]} 20. Nc3 {[%clk 0:01:55.1]} 20... Nc4 {[%clk
0:01:38.8]} 21. Bf1 {[%clk 0:01:51.3]} 21... Nf3+ {[%clk 0:01:14.4]} 22. Qxf3
{[%clk 0:01:42]} 22... Nxd2 {[%clk 0:01:14.7]} 23. Qe2 {[%clk 0:01:14.2]} 23...
Qxe2 {[%clk 0:00:54.7]} 24. Bxe2 {[%clk 0:01:12.1]} 24... Red8 {[%clk
0:00:44.3]} 25. Rc2 {[%clk 0:01:11.2]} 25... Rab8 {[%clk 0:00:37.7]} 26. Rd1
{[%clk 0:00:21.8]} 26... Bh6 {[%clk 0:00:37.4]} 27. Kg2 {[%clk 0:00:20.7]} 27...
Kg7 {[%clk 0:00:36.1]} 28. b3 {[%clk 0:00:14.5]} 28... f5 {[%clk 0:00:25.6]} 29.
exf5 {[%clk 0:00:13.5]} 29... gxf5 {[%clk 0:00:26.5]} 30. Na4 {[%clk 0:00:13.5]}
30... c4 {[%clk 0:00:15.6]} 31. Bxc4 {[%clk 0:00:08.5]} 31... Nxc4 {[%clk
0:00:15.5]} 32. Rxd8 {[%clk 0:00:08]} 32... Ne3+ {[%clk 0:00:07.9]} 33. fxe3
{[%clk 0:00:07.8]} 33... Rxd8 {[%clk 0:00:08.8]} 34. Kf2 {[%clk 0:00:05.9]}
34... e4 {[%clk 0:00:09]} 35. Nc5 {[%clk 0:00:03.2]} 35... Kf6 {[%clk
0:00:07.2]} 36. Nb7 {[%clk 0:00:01]} 36... Rd3 {[%clk 0:00:07]} 0-1

[Event "*** Titled Tuesday Blitz"]
[Site "Chess.com"]
[Date "2021.03.09"]
[Round "6"]
[White "guillembaches"]
[Black "ckgchess"]
[Result "0-1"]
[WhiteElo "2461"]
[BlackElo "2755"]
[TimeControl "180+1"]
[EndTime "11:11:00 PST"]
[Termination "ckgchess won on time"]

1. e4 {[%clk 0:03:00.9]} 1... c6 {[%clk 0:02:59.1]} 2. d4 {[%clk 0:03:00.1]}
2... d5 {[%clk 0:02:58.8]} 3. exd5 {[%clk 0:03:01]} 3... cxd5 {[%clk 0:02:58.5]}
4. Bd3 {[%clk 0:03:01.6]} 4... Nc6 {[%clk 0:02:57.7]} 5. c3 {[%clk 0:03:01.5]}
5... Nf6 {[%clk 0:02:57.3]} 6. h3 {[%clk 0:03:01.8]} 6... g6 {[%clk 0:02:47.6]}
7. Nf3 {[%clk 0:03:01.2]} 7... Bf5 {[%clk 0:02:46.3]} 8. Be2 {[%clk 0:03:01.5]}
8... Bg7 {[%clk 0:02:45.3]} 9. O-O {[%clk 0:03:01]} 9... O-O {[%clk 0:02:44]}
10. Bf4 {[%clk 0:03:00.9]} 10... Re8 {[%clk 0:02:31.4]} 11. Nbd2 {[%clk
0:03:00]} 11... Rc8 {[%clk 0:02:25.2]} 12. Re1 {[%clk 0:02:59.5]} 12... Ne4
{[%clk 0:02:10.2]} 13. Nf1 {[%clk 0:02:59]} 13... a6 {[%clk 0:01:45.7]} 14. Ne3
{[%clk 0:02:56.2]} 14... Be6 {[%clk 0:01:42.2]} 15. Bh2 {[%clk 0:02:43.5]} 15...
Qd7 {[%clk 0:01:37.1]} 16. Nd2 {[%clk 0:02:36.6]} 16... Nd6 {[%clk 0:01:00]} 17.
Bf3 {[%clk 0:02:24.8]} 17... Nf5 {[%clk 0:00:59.2]} 18. Nxf5 {[%clk 0:02:11.2]}
18... Bxf5 {[%clk 0:00:56.3]} 19. Nf1 {[%clk 0:02:08.7]} 19... b5 {[%clk
0:00:45.1]} 20. Ne3 {[%clk 0:01:55.1]} 20... Be6 {[%clk 0:00:44.7]} 21. a3
{[%clk 0:01:44.9]} 21... a5 {[%clk 0:00:37.8]} 22. Qb3 {[%clk 0:01:37.3]} 22...
Red8 {[%clk 0:00:24.6]} 23. Ng4 {[%clk 0:01:21.5]} 23... b4 {[%clk 0:00:20.8]}
24. axb4 {[%clk 0:01:08.9]} 24... axb4 {[%clk 0:00:21.7]} 25. Qa4 {[%clk
0:01:04]} 25... bxc3 {[%clk 0:00:21]} 26. bxc3 {[%clk 0:01:04.9]} 26... h5
{[%clk 0:00:19.9]} 27. Ne3 {[%clk 0:01:02.5]} 27... Bh6 {[%clk 0:00:16.7]} 28.
Qa2 {[%clk 0:00:45.8]} 28... Nb8 {[%clk 0:00:13.7]} 29. Bxb8 {[%clk 0:00:29.4]}
29... Rxb8 {[%clk 0:00:13.8]} 30. Rad1 {[%clk 0:00:28.3]} 30... Rbc8 {[%clk
0:00:12.7]} 31. c4 {[%clk 0:00:28.1]} 31... Bxe3 {[%clk 0:00:11]} 32. fxe3
{[%clk 0:00:28]} 32... Rxc4 {[%clk 0:00:11.2]} 33. Qf2 {[%clk 0:00:14.4]} 33...
Rdc8 {[%clk 0:00:10.9]} 34. Be2 {[%clk 0:00:14.2]} 34... Rc2 {[%clk 0:00:10.6]}
35. Qf3 {[%clk 0:00:13.9]} 35... Bf5 {[%clk 0:00:10.5]} 36. Rf1 {[%clk
0:00:13.9]} 36... Qe6 {[%clk 0:00:10.5]} 37. Rde1 {[%clk 0:00:10.5]} 37... R8c3
{[%clk 0:00:10.6]} 38. Bd1 {[%clk 0:00:09.2]} 38... Be4 {[%clk 0:00:08.2]} 0-1

[Event "*** Titled Tuesday Blitz"]
[Site "Chess.com"]
[Date "2021.03.09"]
[Round "6"]
[White "IljaJoke"]
[Black "Ladislav1969"]
[Result "1-0"]
[WhiteElo "2472"]
[BlackElo "2324"]
[TimeControl "180+1"]
[EndTime "11:11:01 PST"]
[Termination "IljaJoke won by resignation"]

1. e4 {[%clk 0:03:00.9]} 1... c5 {[%clk 0:03:00.1]} 2. Nf3 {[%clk 0:03:00.6]}
2... e6 {[%clk 0:03:00.9]} 3. d4 {[%clk 0:03:00.5]} 3... cxd4 {[%clk 0:03:01.8]}
4. Nxd4 {[%clk 0:03:00.9]} 4... a6 {[%clk 0:03:02.7]} 5. c4 {[%clk 0:03:00.5]}
5... Nf6 {[%clk 0:03:01.5]} 6. Nc3 {[%clk 0:03:00.3]} 6... Bb4 {[%clk
0:03:02.1]} 7. Qd3 {[%clk 0:02:58.7]} 7... Nc6 {[%clk 0:03:02.7]} 8. Nxc6 {[%clk
0:02:39.1]} 8... dxc6 {[%clk 0:03:02.8]} 9. Qxd8+ {[%clk 0:02:35.6]} 9... Kxd8
{[%clk 0:03:03.7]} 10. e5 {[%clk 0:02:36.4]} 10... Ne4 {[%clk 0:03:04]} 11. a3
{[%clk 0:02:30.2]} 11... Bxc3+ {[%clk 0:02:57.9]} 12. bxc3 {[%clk 0:02:31.1]}
12... Kc7 {[%clk 0:02:52.4]} 13. Be3 {[%clk 0:02:30.1]} 13... b6 {[%clk
0:02:45.7]} 14. Bd3 {[%clk 0:02:29.9]} 14... Nc5 {[%clk 0:02:45.2]} 15. Bxc5
{[%clk 0:02:28.8]} 15... bxc5 {[%clk 0:02:45.4]} 16. h4 {[%clk 0:02:29.4]} 16...
h5 {[%clk 0:02:38.1]} 17. Rh3 {[%clk 0:02:28.8]} 17... Rd8 {[%clk 0:02:31.6]}
18. Kd2 {[%clk 0:02:18.2]} 18... Bd7 {[%clk 0:02:05.2]} 19. Rg3 {[%clk
0:02:13.2]} 19... g6 {[%clk 0:02:04.3]} 20. Rg5 {[%clk 0:02:04.3]} 20... Rab8
{[%clk 0:02:00.6]} 21. Rb1 {[%clk 0:01:50.2]} 21... Be8 {[%clk 0:01:46]} 22.
Rxb8 {[%clk 0:01:49]} 22... Rxb8 {[%clk 0:01:45.9]} 23. Kc2 {[%clk 0:01:47.3]}
23... Kb6 {[%clk 0:01:32.5]} 24. Kb2 {[%clk 0:01:46.7]} 24... Ka5+ {[%clk
0:01:32.2]} 25. Ka2 {[%clk 0:01:39.6]} 25... Rd8 {[%clk 0:01:31.2]} 26. Rg3
{[%clk 0:01:39.7]} 26... Rd7 {[%clk 0:01:20.8]} 27. Re3 {[%clk 0:01:38.8]} 27...
Rd8 {[%clk 0:01:20.3]} 28. f3 {[%clk 0:01:37.4]} 28... Rd7 {[%clk 0:01:19.8]}
29. g4 {[%clk 0:01:37.2]} 29... Rd8 {[%clk 0:01:16]} 30. gxh5 {[%clk 0:01:37.4]}
30... gxh5 {[%clk 0:01:15.7]} 31. f4 {[%clk 0:01:38]} 31... Rd7 {[%clk
0:01:14.5]} 32. Rg3 {[%clk 0:01:38.2]} 32... Rd8 {[%clk 0:01:13.1]} 33. Bc2
{[%clk 0:01:20.4]} 33... Rd2 {[%clk 0:01:12.9]} 34. Kb3 {[%clk 0:01:12.9]} 34...
Rh2 {[%clk 0:01:00.4]} 35. Rg8 {[%clk 0:01:12.8]} 35... Rxh4 {[%clk 0:00:57.6]}
36. Rxe8 {[%clk 0:01:11.8]} 36... Rxf4 {[%clk 0:00:57.3]} 37. Rh8 {[%clk
0:01:05.5]} 37... h4 {[%clk 0:00:57.4]} 38. Rh7 {[%clk 0:01:03.7]} 38... Kb6
{[%clk 0:00:56.2]} 39. a4 {[%clk 0:00:58.5]} 39... Ka5 {[%clk 0:00:55.2]} 40.
Bd1 {[%clk 0:00:50.6]} 40... Re4 {[%clk 0:00:44.6]} 41. Bh5 {[%clk 0:00:49]}
41... Rxe5 {[%clk 0:00:41.4]} 42. Bxf7 {[%clk 0:00:49.1]} 42... Re4 {[%clk
0:00:40]} 43. Rh6 {[%clk 0:00:47.8]} 43... Kb6 {[%clk 0:00:35.9]} 44. Rxe6
{[%clk 0:00:43.7]} 44... Rxe6 {[%clk 0:00:21.1]} 45. Bxe6 {[%clk 0:00:44.6]}
45... a5 {[%clk 0:00:19.7]} 46. Kc2 {[%clk 0:00:43.2]} 46... Kc7 {[%clk
0:00:20.1]} 47. Kd3 {[%clk 0:00:41]} 47... Kd6 {[%clk 0:00:20.4]} 48. Bh3 {[%clk
0:00:41.3]} 48... Ke5 {[%clk 0:00:20.7]} 49. Ke3 {[%clk 0:00:41.8]} 49... Kf6
{[%clk 0:00:19.1]} 50. Kf4 {[%clk 0:00:42.1]} 50... Kg6 {[%clk 0:00:17.4]} 51.
Kg4 {[%clk 0:00:35.1]} 51... Kf6 {[%clk 0:00:17.2]} 52. Kxh4 {[%clk 0:00:35.4]}
52... Ke5 {[%clk 0:00:18.1]} 53. Bd7 {[%clk 0:00:35.6]} 53... Ke4 {[%clk
0:00:19]} 54. Bxc6+ {[%clk 0:00:35.8]} 54... Kd3 {[%clk 0:00:19.6]} 55. Bb5
{[%clk 0:00:36.1]} 55... Kxc3 {[%clk 0:00:19.8]} 56. Kg5 {[%clk 0:00:36.9]}
56... Kd4 {[%clk 0:00:18.3]} 57. Kf6 {[%clk 0:00:37.8]} 1-0

[Event "*** Titled Tuesday Blitz"]
[Site "Chess.com"]
[Date "2021.03.09"]
[Round "6"]
[White "Steegersee"]
[Black "drragnar1"]
[Result "1-0"]
[WhiteElo "2270"]
[BlackElo "2412"]
[TimeControl "180+1"]
[EndTime "11:11:01 PST"]
[Termination "Steegersee won on time"]

1. d4 {[%clk 0:03:00.9]} 1... Nf6 {[%clk 0:02:59.3]} 2. c4 {[%clk 0:03:00.5]}
2... c5 {[%clk 0:02:59.2]} 3. d5 {[%clk 0:02:59.6]} 3... e5 {[%clk 0:02:59.4]}
4. g3 {[%clk 0:02:57.5]} 4... d6 {[%clk 0:02:59.4]} 5. Bg2 {[%clk 0:02:58.1]}
5... Be7 {[%clk 0:03:00]} 6. e4 {[%clk 0:02:58.6]} 6... O-O {[%clk 0:03:00.6]}
7. Ne2 {[%clk 0:02:58.6]} 7... Ne8 {[%clk 0:03:00.8]} 8. O-O {[%clk 0:02:58.2]}
8... g6 {[%clk 0:03:00.8]} 9. Nbc3 {[%clk 0:02:57.1]} 9... Ng7 {[%clk
0:03:00.6]} 10. a3 {[%clk 0:02:43.5]} 10... Nd7 {[%clk 0:03:00.3]} 11. b4 {[%clk
0:02:42.2]} 11... f5 {[%clk 0:02:58]} 12. Qc2 {[%clk 0:02:27.2]} 12... f4 {[%clk
0:02:52.4]} 13. gxf4 {[%clk 0:02:22.6]} 13... Nh5 {[%clk 0:02:43.4]} 14. fxe5
{[%clk 0:02:03.4]} 14... Nxe5 {[%clk 0:02:41.2]} 15. f4 {[%clk 0:02:02.6]} 15...
Nxc4 {[%clk 0:02:40]} 16. bxc5 {[%clk 0:01:59.3]} 16... Bg4 {[%clk 0:02:31.4]}
17. Qd3 {[%clk 0:01:38.6]} 17... Na5 {[%clk 0:02:17.6]} 18. Ng3 {[%clk
0:01:12.1]} 18... Nb3 {[%clk 0:02:12.9]} 19. Nxh5 {[%clk 0:00:37.7]} 19... Nxa1
{[%clk 0:02:12]} 20. Ng3 {[%clk 0:00:37.8]} 20... Nb3 {[%clk 0:02:11.3]} 21.
cxd6 {[%clk 0:00:37]} 21... Nxc1 {[%clk 0:02:02.7]} 22. Rxc1 {[%clk 0:00:30.5]}
22... Bxd6 {[%clk 0:02:00.8]} 23. e5 {[%clk 0:00:30.6]} 23... Bc5+ {[%clk
0:02:00.8]} 24. Kh1 {[%clk 0:00:30.1]} 24... Rxf4 {[%clk 0:02:00.8]} 25. d6
{[%clk 0:00:29.2]} 25... Kg7 {[%clk 0:01:43.9]} 26. Nd5 {[%clk 0:00:25.3]} 26...
Rd4 {[%clk 0:01:37.9]} 27. Qc3 {[%clk 0:00:19.5]} 27... b6 {[%clk 0:01:37.9]}
28. Nf6 {[%clk 0:00:16.5]} 28... Rc8 {[%clk 0:01:25.3]} 29. Nxg4 {[%clk
0:00:16.6]} 29... Rxg4 {[%clk 0:01:23.2]} 30. e6+ {[%clk 0:00:17.5]} 30... Qf6
{[%clk 0:01:22]} 31. d7 {[%clk 0:00:18.4]} 31... Rd8 {[%clk 0:01:18.4]} 32. Qe1
{[%clk 0:00:14.9]} 32... Rg5 {[%clk 0:01:07.1]} 33. Rxc5 {[%clk 0:00:13.4]}
33... bxc5 {[%clk 0:00:58.6]} 34. e7 {[%clk 0:00:13.8]} 34... Re5 {[%clk
0:00:48]} 35. Qxe5 {[%clk 0:00:10]} 35... Qxe5 {[%clk 0:00:48]} 36. exd8=Q
{[%clk 0:00:09.9]} 36... c4 {[%clk 0:00:44.5]} 37. Qe8 {[%clk 0:00:07.7]} 37...
Qa1+ {[%clk 0:00:43.3]} 38. Bf1 {[%clk 0:00:08.2]} 1-0

[Event "*** Titled Tuesday Blitz"]
[Site "Chess.com"]
[Date "2021.03.09"]
[Round "6"]
[White "Caracternin123"]
[Black "KubaGepard"]
[Result "1-0"]
[WhiteElo "2588"]
[BlackElo "2402"]
[TimeControl "180+1"]
[EndTime "11:11:03 PST"]
[Termination "Caracternin123 won by resignation"]

1. e4 {[%clk 0:03:00.9]} 1... c5 {[%clk 0:02:59.2]} 2. Nf3 {[%clk 0:03:01]} 2...
d6 {[%clk 0:02:59.2]} 3. d4 {[%clk 0:03:01.5]} 3... cxd4 {[%clk 0:03:00.1]} 4.
Nxd4 {[%clk 0:03:02.4]} 4... Nf6 {[%clk 0:03:00.2]} 5. Nc3 {[%clk 0:03:02.4]}
5... a6 {[%clk 0:03:00.5]} 6. f3 {[%clk 0:03:02.7]} 6... e5 {[%clk 0:02:57.1]}
7. Nb3 {[%clk 0:03:02.9]} 7... Be6 {[%clk 0:02:56.3]} 8. Be3 {[%clk 0:03:02.8]}
8... h5 {[%clk 0:02:52.9]} 9. Qd2 {[%clk 0:02:58.7]} 9... Be7 {[%clk 0:02:51.9]}
10. O-O-O {[%clk 0:02:58.7]} 10... Nbd7 {[%clk 0:02:51]} 11. Nd5 {[%clk
0:02:58.5]} 11... Bxd5 {[%clk 0:02:46.1]} 12. exd5 {[%clk 0:02:59.4]} 12... Rc8
{[%clk 0:02:43.3]} 13. Bd3 {[%clk 0:02:59]} 13... Nxd5 {[%clk 0:02:31.7]} 14.
Kb1 {[%clk 0:02:53.6]} 14... Nxe3 {[%clk 0:02:16.6]} 15. Qxe3 {[%clk 0:02:54.5]}
15... Nc5 {[%clk 0:02:10.1]} 16. Bf5 {[%clk 0:02:34.2]} 16... Rc7 {[%clk
0:02:05.2]} 17. f4 {[%clk 0:02:34.3]} 17... Nxb3 {[%clk 0:01:55.6]} 18. fxe5
{[%clk 0:02:34.4]} 18... Rc5 {[%clk 0:01:29.4]} 19. exd6 {[%clk 0:01:14.7]}
19... Rxf5 {[%clk 0:01:26.1]} 20. Rhe1 {[%clk 0:01:15.4]} 20... Nc5 {[%clk
0:01:15.3]} 21. dxe7 {[%clk 0:01:15.4]} 21... Qxd1+ {[%clk 0:01:08.5]} 22. Rxd1
{[%clk 0:01:16.3]} 22... Ne6 {[%clk 0:01:08]} 23. Rd8+ {[%clk 0:01:12.6]} 23...
Kxe7 {[%clk 0:00:51.1]} 24. Rxh8 {[%clk 0:01:12]} 24... Rf1+ {[%clk 0:00:50.7]}
25. Qc1 {[%clk 0:01:12.7]} 25... Rxc1+ {[%clk 0:00:50.7]} 26. Kxc1 {[%clk
0:01:13.6]} 26... g6 {[%clk 0:00:50.2]} 27. Rb8 {[%clk 0:01:11.2]} 27... Nd8
{[%clk 0:00:47.7]} 28. Rc8 {[%clk 0:01:09.4]} 28... Kd7 {[%clk 0:00:47.3]} 29.
Rc3 {[%clk 0:01:09.3]} 29... Nc6 {[%clk 0:00:46.6]} 30. Kd2 {[%clk 0:01:09.3]}
30... Kd6 {[%clk 0:00:42.3]} 31. Ke3 {[%clk 0:01:09.2]} 31... g5 {[%clk
0:00:41.5]} 32. Ke4 {[%clk 0:01:08.8]} 32... Ne7 {[%clk 0:00:41.1]} 33. h4
{[%clk 0:00:57.3]} 33... f5+ {[%clk 0:00:39.7]} 34. Kd4 {[%clk 0:00:57.7]} 34...
g4 {[%clk 0:00:32.6]} 35. g3 {[%clk 0:00:55]} 35... Nc6+ {[%clk 0:00:31]} 36.
Ke3 {[%clk 0:00:48.4]} 36... Ke5 {[%clk 0:00:29.8]} 37. Rc5+ {[%clk 0:00:48.5]}
37... Kf6 {[%clk 0:00:28.6]} 38. Kf4 {[%clk 0:00:48.4]} 38... Ne7 {[%clk
0:00:26.7]} 39. c4 {[%clk 0:00:43.8]} 39... b6 {[%clk 0:00:22.3]} 40. Rc7 {[%clk
0:00:44.1]} 40... Ng6+ {[%clk 0:00:20.6]} 41. Ke3 {[%clk 0:00:44]} 41... f4+
{[%clk 0:00:21]} 42. gxf4 {[%clk 0:00:43.9]} 42... Nxh4 {[%clk 0:00:21.5]} 43.
Rc6+ {[%clk 0:00:44.2]} 43... Kg7 {[%clk 0:00:20.3]} 44. Rxb6 {[%clk 0:00:43.5]}
44... Nf5+ {[%clk 0:00:20.9]} 45. Kf2 {[%clk 0:00:43.6]} 45... h4 {[%clk
0:00:21.5]} 46. c5 {[%clk 0:00:40.5]} 46... h3 {[%clk 0:00:21.5]} 47. Rb3 {[%clk
0:00:36.2]} 47... h2 {[%clk 0:00:15.8]} 48. Kg2 {[%clk 0:00:35.8]} 48... g3
{[%clk 0:00:16.2]} 49. c6 {[%clk 0:00:30.1]} 49... Kf7 {[%clk 0:00:14]} 50. c7
{[%clk 0:00:28.6]} 50... Nd6 {[%clk 0:00:14.1]} 51. Rxg3 {[%clk 0:00:28.4]}
51... Ne4 {[%clk 0:00:13.9]} 52. c8=Q {[%clk 0:00:25.9]} 1-0

[Event "*** Titled Tuesday Blitz"]
[Site "Chess.com"]
[Date "2021.03.09"]
[Round "6"]
[White "dusanacns"]
[Black "WPWPWP-2015"]
[Result "1-0"]
[WhiteElo "2723"]
[BlackElo "2507"]
[TimeControl "180+1"]
[EndTime "11:11:04 PST"]
[Termination "dusanacns won on time"]

1. e4 {[%clk 0:03:00.9]} 1... e5 {[%clk 0:02:55.6]} 2. d4 {[%clk 0:03:00.9]}
2... exd4 {[%clk 0:02:55.2]} 3. Qxd4 {[%clk 0:03:01.8]} 3... Nc6 {[%clk
0:02:53.3]} 4. Qe3 {[%clk 0:03:02]} 4... Nf6 {[%clk 0:02:52.5]} 5. Nc3 {[%clk
0:03:02.2]} 5... Bb4 {[%clk 0:02:51.5]} 6. Bd2 {[%clk 0:03:02.6]} 6... O-O
{[%clk 0:02:51]} 7. O-O-O {[%clk 0:03:03.2]} 7... Re8 {[%clk 0:02:50.9]} 8. Qf4
{[%clk 0:03:03.6]} 8... d6 {[%clk 0:02:45.5]} 9. f3 {[%clk 0:03:03]} 9... Qe7
{[%clk 0:02:34.4]} 10. g4 {[%clk 0:03:00.9]} 10... Be6 {[%clk 0:02:00.3]} 11. g5
{[%clk 0:02:54]} 11... Nd7 {[%clk 0:01:59.1]} 12. a3 {[%clk 0:02:47.3]} 12...
Bc5 {[%clk 0:01:55.7]} 13. h4 {[%clk 0:02:39.6]} 13... Nce5 {[%clk 0:01:33.4]}
14. Qg3 {[%clk 0:02:37.8]} 14... Nc4 {[%clk 0:01:30.2]} 15. Bxc4 {[%clk
0:02:35.2]} 15... Bxc4 {[%clk 0:01:31.1]} 16. h5 {[%clk 0:02:33.6]} 16... Nf8
{[%clk 0:01:22.3]} 17. Nh3 {[%clk 0:02:26.7]} 17... Bd4 {[%clk 0:01:13.4]} 18.
Nf4 {[%clk 0:02:18.9]} 18... c6 {[%clk 0:01:09.8]} 19. g6 {[%clk 0:02:17.9]}
19... fxg6 {[%clk 0:01:09.5]} 20. hxg6 {[%clk 0:02:18]} 20... h6 {[%clk
0:01:09.7]} 21. Nfe2 {[%clk 0:02:16]} 21... Be5 {[%clk 0:01:06.6]} 22. f4 {[%clk
0:01:54.5]} 22... Bf6 {[%clk 0:01:05.9]} 23. Rde1 {[%clk 0:01:54.9]} 23... Qe6
{[%clk 0:00:56.7]} 24. f5 {[%clk 0:01:40.6]} 24... Qe5 {[%clk 0:00:53.7]} 25.
Nf4 {[%clk 0:01:30.4]} 25... d5 {[%clk 0:00:43.3]} 26. Qh3 {[%clk 0:01:00.7]}
26... dxe4 {[%clk 0:00:36.7]} 27. Nh5 {[%clk 0:00:52.5]} 27... Bd5 {[%clk
0:00:28.9]} 28. Nxf6+ {[%clk 0:00:48.1]} 28... Qxf6 {[%clk 0:00:28.5]} 29. Ne2
{[%clk 0:00:35]} 29... e3 {[%clk 0:00:24.1]} 30. Bc3 {[%clk 0:00:35.1]} 30...
Re5 {[%clk 0:00:09.5]} 31. Rhf1 {[%clk 0:00:29.6]} 31... Nd7 {[%clk 0:00:08.8]}
32. Ng3 {[%clk 0:00:26.8]} 32... Rae8 {[%clk 0:00:06]} 33. Kb1 {[%clk
0:00:25.1]} 33... Qg5 {[%clk 0:00:03.7]} 34. Bxe5 {[%clk 0:00:22.7]} 34... Rxe5
{[%clk 0:00:04.6]} 35. Rg1 {[%clk 0:00:20.4]} 35... Nf6 {[%clk 0:00:04.2]} 36.
Qh2 {[%clk 0:00:15.1]} 36... Qf4 {[%clk 0:00:04]} 37. Qe2 {[%clk 0:00:11.8]}
37... Qg4 {[%clk 0:00:03.7]} 38. Qd3 {[%clk 0:00:08.6]} 38... Qf4 {[%clk
0:00:03.5]} 39. Qc3 {[%clk 0:00:08.4]} 39... b6 {[%clk 0:00:01.8]} 40. Qd3
{[%clk 0:00:07.2]} 1-0